[Event "7th Summer Cup 2024"]
[Site "Rhodes"]
[Date "2024.06.26"]
[Round "5.1"]
[White "Papasimakopoulos, Alexandros"]
[Black "Kotronias, Vasilios"]
[Result "0-1"]
[ECO "A48"]
[WhiteElo "2375"]
[BlackElo "2415"]
[Annotator "RC"]
[PlyCount "122"]
[EventDate "2024.06.21"]
[EventType "swiss"]
[EventCountry "GRE"]
[SourceTitle "playchess.com"]
[Source "ChessBase"]
[SourceQuality "1"]
[TimeControl "40/5400+30:900+30"]

1. Nf3 {[%emt 0:08:34]} Nf6 {[%emt 0:00:03]} 2. b3 {[%emt 0:00:05]} g6 {[%emt 0:00:10]} 3. Bb2 {[%emt 0:00:05]} Bg7 {[%emt 0:00:05]} 4. d4 {[%emt 0:00:05]} d6 {[%emt 0:00:07]} 5. e3 {[%emt 0:00:35]} c5 {[%emt 0:01:58]} 6. dxc5 {[%emt 0:00:15]} Qa5+ {[%emt 0:00:08]} 7. Nbd2 {[%emt 0:00:05]} Qxc5 {[%emt 0:00:08]} 8. a3 {[%emt 0:01:26]} Nbd7 {[%emt 0:00:41]} 9. c4 {[%emt 0:00:40]} O-O {[%emt 0:00:44]} 10. Be2 {[%emt 0:00:12]} b6 {[%emt 0:00:32]} 11. b4 {[%emt 0:01:42]} Qc7 {[%emt 0:00:13]} 12. O-O {[%emt 0:00:53]} Bb7 {[%emt 0:00:13]} 13. Rc1 {[%emt 0:00:44]} Rac8 {[%emt 0:00:17]} 14. Nd4 {[%emt 0:03:06]} Qb8 {[%emt 0:01:30]} 15. Bf3 {[%emt 0:01:27]} Ne5 {[%emt 0:02:35]} 16. Bxb7 {[%emt 0:00:43]} Qxb7 {[%emt 0:00:02]} 17. Qe2 {[%emt 0:02:22]} Nc6 {[%emt 0:04:48]} 18. h3 {[%emt 0:03:15]} Rfd8 {[%emt 0:05:14]} 19. Nxc6 {[%emt 0:04:29]} Qxc6 {[%emt 0:01:59]} 20. Rfd1 {[%emt 0:04:52]} Ne4 {[%emt 0:05:38]} 21. Nf3 {[%emt 0:01:44]} Bxb2 {[%emt 0:01:23]} 22. Qxb2 {[%emt 0:00:06]} e5 {[%emt 0:03:33]} 23. Ne1 {[%emt 0:01:56]} b5 {[%emt 0:01:05]} 24. f3 {[%emt 0:02:07]} Ng3 {[%emt 0:04:08]} 25. c5 {[%emt 0:02:15]} d5 {[%emt 0:08:26]} 26. Nd3 {[%emt 0:04:29]} f6 {[%emt 0:03:52]} 27. f4 {[%emt 0:00:26]} d4 {[%emt 0:00:59]} 28. exd4 {[%emt 0:01:57]} exd4 {[%emt 0:04:32]} 29. Ne1 {[%emt 0:03:36]} Qe6 {[%emt 0:01:16]} 30. Rc2 {[%emt 0:10:40]} Qe3+ {[%emt 0:04:42]} 31. Kh2 {[%emt 0:00:28]} Nf1+ {[%emt 0:01:11]} 32. Kh1 {[%emt 0:00:05]} Qxf4 {[%emt 0:05:05]} 33. Kg1 {[%emt 0:00:32]} Ne3 {[%emt 0:01:07]} 34. Rf2 {[%emt 0:00:30]} Qe4 {[%emt 0:01:42]} 35. Qb3+ {[%emt 0:04:34]} Kg7 {[%emt 0:00:20]} 36. Rdd2 {[%emt 0:01:55]} a5 {[%emt 0:00:14]} 37. Qd3 {[%emt 0:01:15]} Qxd3 {[%emt 0:04:27]} 38. Rxd3 {[%emt 0:00:09]} axb4 {[%emt 0:00:49]} 39. axb4 {[%emt 0:00:06]} Ra8 {[%emt 0:02:33]} 40. Nc2 {[%emt 0:00:00]} Nxc2 {[%emt 0:00:00]} 41. Rxc2 {[%emt 0:06:07]} Ra1+ {[%emt 0:01:03]} 42. Kf2 {[%emt 0:00:23]} Rb1 {[%emt 0:00:05]} 43. Ra3 {[%emt 0:02:44]} Rxb4 {[%emt 0:02:52]} 44. Ra7+ {[%emt 0:00:05]} Kh6 {[%emt 0:00:13]} 45. c6 {[%emt 0:01:48]} d3 {[%emt 0:04:54]} 46. Rd2 {[%emt 0:02:16]} Rc4 {[%emt 0:01:28]} 47. Rb7 {[%emt 0:01:15]} Rxc6 {[%emt 0:00:59]} 48. Rxb5 {[%emt 0:00:05]} Rd7 {[%emt 0:04:42]} 49. Ke3 {[%emt 0:00:54]} Re6+ {[%emt 0:00:20]} 50. Kf3 {[%emt 0:00:14]} f5 {[%emt 0:00:09]} 51. g3 {[%emt 0:01:40]} Kg5 {[%emt 0:01:38]} 52. Rb3 {[%emt 0:00:48]} Red6 {[%emt 0:00:15]} 53. Rc3 {[%emt 0:00:41]} Rd5 {[%emt 0:02:27]} 54. Rb3 {[%emt 0:00:08]} Rd4 {[%emt 0:01:25]} 55. Rc3 {[%emt 0:00:28]} Kf6 {[%emt 0:00:18]} 56. Rb3 {[%emt 0:00:51]} g5 {[%emt 0:02:04]} 57. Ra3 {[%emt 0:02:20]} h5 {[%emt 0:00:21]} 58. Rb3 {[%emt 0:00:27]} h4 {[%emt 0:00:13]} 59. Rc3 {[%emt 0:01:23]} g4+ {[%emt 0:02:48]} 60. Kg2 {[%emt 0:00:14]} Ke5 {[%emt 0:03:44]} 61. hxg4 {[%emt 0:01:26]} Rxg4 {[%emt 0:03:46]} 0-1

[Event "7th Summer Cup 2024"]
[Site "Rhodes"]
[Date "2024.06.26"]
[Round "5.2"]
[White "Seres, Bela"]
[Black "Nasuta, Grzegorz"]
[Result "0-1"]
[ECO "A48"]
[WhiteElo "2126"]
[BlackElo "2541"]
[Annotator "TA"]
[PlyCount "82"]
[EventDate "2024.06.21"]
[EventType "swiss"]
[EventCountry "GRE"]
[SourceTitle "playchess.com"]
[Source "ChessBase"]
[SourceQuality "1"]
[TimeControl "40/5400+30:900+30"]

{[%evp 22,82,17,0,0,0,20,-24,-25,-30,-26,-40,-33,-36,-8,-38,-50,-67,-73,-137,-123,-123,-145,-133,-134,-158,-162,-170,-132,-155,-142,-279,-260,-282,-277,-285,-281,-275,-277,-294,-288,-656,-661,-659,-658,-638,-520,-509,-497,-502,-331,-844,-656,-1000,-984,-921,-789,-762,-834,-823,-793,-799,-799]} 1. d4 {[%emt 0:00:13]} Nf6 {[%emt 0:09:56]} 2. Nf3 {[%emt 0:00:40]} g6 {[%emt 0:00:33]} 3. Bf4 {[%emt 0:03:11]} Bg7 {[%emt 0:02:08]} 4. e3 {[%emt 0:00:18]} d6 {[%emt 0:05:43]} 5. h3 {[%emt 0:01:26]} c5 {[%emt 0:06:59]} 6. c3 {[%emt 0:00:30]} b6 {[%emt 0:14:03]} 7. Nbd2 {[%emt 0:00:57]} Bb7 {[%emt 0:00:07]} 8. Be2 {[%emt 0:00:33]} O-O {[%emt 0:00:09]} 9. O-O {[%emt 0:00:23]} Nbd7 {[%emt 0:00:05]} 10. Bh2 {[%emt 0:03:54]} a6 {[%emt 0:01:43]} 11. a4 {[%emt 0:03:25]} Qc7 {[%emt 0:02:08]} 12. Qb3 {[%emt 0:03:08]} Bc6 {[%emt 0:01:54]} 13. Qa3 {[%emt 0:03:37]} Qb7 {[%emt 0:07:59]} 14. Rfb1 {[%emt 0:07:52]} Ne4 {[%emt 0:06:39] Black has an edge.} 15. Bf1 {[%emt 0:00:30]} Rfc8 {[%emt 0:01:15]} 16. b4 {[%emt 0:14:28]} cxb4 {[%emt 0:18:09]} 17. cxb4 {[%emt 0:02:17]} Ndf6 {[%emt 0:03:55]} 18. Rc1 {[%emt 0:09:13]} b5 {[%emt 0:00:36]} 19. Nb3 {[%emt 0:02:11] [#] Na5 is the strong threat.} Bd7 {[%emt 0:05:24] White is now going downhill.} (19... bxa4 20. Na5 Qd7 21. Nxc6 Rxc6 22. Rxc6 Qxc6 23. Rc1 $11 (23. Qxa4 Qc3 $11)) 20. Na5 {[%emt 0:08:55]} (20. Rxc8+ $142 Rxc8 21. axb5 Bxb5 (21... axb5 22. Nfd2 $15) 22. Bxb5 axb5 23. Nbd2) 20... Qd5 $17 {[%emt 0:05:32]} 21. axb5 {[%emt 0:12:22]} Bxb5 {[%emt 0:00:17]} 22. Bd3 {[%emt 0:03:42]} Bh6 {[%emt 0:00:46]} 23. Ne1 {[%emt 0:02:29]} Qf5 {[%emt 0:02:25]} 24. Bxe4 {[%emt 0:00:25]} Nxe4 {[%emt 0:01:18]} 25. f3 {[%emt 0:01:10]} Nf6 $36 {[%emt 0:00:06][%mdl 2048] Black is really pushing. Black has more active pieces.} 26. Bg3 {[%emt 0:01:40]} (26. Rd1 $17) 26... Qe6 {[%emt 0:00:01]} 27. Bf2 {[%emt 0:02:06]} Nd5 {[%emt 0:00:05][%cal Rd5e3]} 28. f4 {[%emt 0:04:34]} g5 {[%emt 0:00:25]} 29. fxg5 {[%emt 0:06:00]} Bxg5 {[%emt 0:00:02]} 30. Nf3 {[%emt 0:01:39]} Bxe3 {[%emt 0:00:01] A strong pair of Bishops.} 31. Re1 {[%emt 0:00:35]} (31. Bxe3 Qxe3+ (31... Nxe3 $2 32. Ng5 $18) 32. Qxe3 Nxe3 33. Kf2) 31... Bxf2+ $19 {[%emt 0:01:51]} 32. Kxf2 {[%emt 0:00:02]} Rc2+ {[%emt 0:00:12]} 33. Kg1 {[%emt 0:00:48]} Qg6 {[%emt 0:00:02]} 34. Nh4 {[%emt 0:00:28]} Qg5 {[%emt 0:00:03]} 35. Qf3 {[%emt 0:00:29]} Rac8 {[%emt 0:04:33][%cal Ob5d7] [#] Threatens to win with ...Bd7!} 36. Re4 $2 {[%emt 0:01:11]} (36. Nf5 Bd7 (36... Nxb4 $2 {loses.} 37. Nxe7+ Kh8 38. Nxc8 $18) 37. Ne3 Nxe3 (37... Nxb4 38. Rab1 $17) 38. Rxe3) 36... Nf6 {[%emt 0:00:31] Black is clearly winning.} (36... Nxb4 $2 {is the wrong capture.} 37. Rg4 $18) 37. Nf5 {[%emt 0:00:30]} Nxe4 {[%emt 0:00:38]} 38. Qxe4 {[%emt 0:00:05]} Re2 {[%emt 0:00:16]} 39. Qg4 {[%emt 0:01:27]} Qxg4 {[%emt 0:00:12]} 40. hxg4 {[%emt 0:00:00]} Rcc2 {[%emt 0:00:00]} 41. Nh4 {[%emt 0:00:06]} Re4 {[%emt 0:00:58][%csl LRd4,LRg4] Weighted Error Value: White=0.61/Black=0.39.  Mistake:       	White=4     	---        Inaccurate:     	White=3     	Black=2      OK:         	White=7     	Black=8      Best:        	White=1     	Black=2} 0-1

[Event "7th Summer Cup 2024"]
[Site "Rhodes"]
[Date "2024.06.26"]
[Round "5.3"]
[White "Budisavljevic, Luka"]
[Black "Gelle, Istvan"]
[Result "1-0"]
[ECO "B11"]
[WhiteElo "2468"]
[BlackElo "2163"]
[Annotator "RC"]
[PlyCount "73"]
[EventDate "2024.06.21"]
[EventType "swiss"]
[EventCountry "GRE"]
[SourceTitle "playchess.com"]
[Source "ChessBase"]
[SourceQuality "1"]
[TimeControl "40/5400+30:900+30"]

1. e4 {[%emt 0:01:11]} c6 {[%emt 0:00:11]} 2. Nf3 {[%emt 0:00:20]} d5 {[%emt 0:00:08]} 3. Nc3 {[%emt 0:00:31]} dxe4 {[%emt 0:00:11]} 4. Nxe4 {[%emt 0:00:07]} Nf6 {[%emt 0:00:08]} 5. Qe2 {[%emt 0:00:09]} Nxe4 {[%emt 0:00:30]} 6. Qxe4 {[%emt 0:00:06]} Be6 {[%emt 0:01:49]} 7. Be2 {[%emt 0:01:13]} Bd5 {[%emt 0:04:22]} 8. Qe3 {[%emt 0:06:19]} Nd7 {[%emt 0:02:44]} 9. O-O {[%emt 0:01:59]} a6 {[%emt 0:05:19]} 10. b3 {[%emt 0:08:31]} Qb6 {[%emt 0:10:57]} 11. d4 {[%emt 0:10:53]} c5 {[%emt 0:16:51]} 12. Bb2 {[%emt 0:03:17]} e6 {[%emt 0:09:19]} 13. dxc5 {[%emt 0:10:32]} Bxc5 {[%emt 0:03:59]} 14. Qg5 {[%emt 0:00:42]} Rg8 {[%emt 0:01:01]} 15. c4 {[%emt 0:00:44]} Bc6 {[%emt 0:13:04]} 16. Bc3 {[%emt 0:00:10]} h6 {[%emt 0:03:40]} 17. Qd2 {[%emt 0:01:00]} a5 {[%emt 0:07:41]} 18. Nd4 {[%emt 0:00:13]} Bb4 {[%emt 0:03:18]} 19. Bxb4 {[%emt 0:00:39]} axb4 {[%emt 0:07:13]} 20. Nc2 {[%emt 0:00:02]} Qa5 {[%emt 0:02:57]} 21. Rfd1 {[%emt 0:04:19]} O-O-O {[%emt 0:01:31]} 22. Nxb4 {[%emt 0:04:05]} Nc5 {[%emt 0:01:21]} 23. Qe1 {[%emt 0:02:23]} Ne4 {[%emt 0:02:02]} 24. Bf3 {[%emt 0:05:26]} f5 {[%emt 0:01:01]} 25. Rxd8+ {[%emt 0:01:47]} Rxd8 {[%emt 0:00:06]} 26. Nxc6 {[%emt 0:00:08]} Qxe1+ {[%emt 0:00:18]} 27. Rxe1 {[%emt 0:00:02]} bxc6 {[%emt 0:00:09]} 28. Bxe4 {[%emt 0:00:02]} fxe4 {[%emt 0:00:16]} 29. h4 {[%emt 0:00:16]} Rd4 {[%emt 0:00:55]} 30. h5 {[%emt 0:01:38]} Kd7 {[%emt 0:00:10]} 31. Kf1 {[%emt 0:00:31]} Kd6 {[%emt 0:01:38]} 32. Ke2 {[%emt 0:00:07]} Kc5 {[%emt 0:00:22]} 33. Rd1 {[%emt 0:00:47]} e5 {[%emt 0:00:22]} 34. a3 {[%emt 0:00:28]} e3 {[%emt 0:01:18]} 35. Rxd4 {[%emt 0:00:15]} Kxd4 {[%emt 0:00:30]} 36. fxe3+ {[%emt 0:00:04]} Kc3 {[%emt 0:00:23]} 37. a4 {[%emt 0:00:02]} 1-0

[Event "7th Summer Cup 2024"]
[Site "Rhodes"]
[Date "2024.06.26"]
[Round "5.4"]
[White "Rigopoulos-Tsigkos, Alexandros"]
[Black "Sibashvili, Giorgi"]
[Result "1/2-1/2"]
[ECO "B22"]
[WhiteElo "2039"]
[BlackElo "2423"]
[Annotator "RC"]
[PlyCount "92"]
[EventDate "2024.06.21"]
[EventType "swiss"]
[EventCountry "GRE"]
[SourceTitle "playchess.com"]
[Source "ChessBase"]
[SourceQuality "1"]
[TimeControl "40/5400+30:900+30"]

1. e4 {[%emt 0:05:37]} c5 {[%emt 0:00:15]} 2. Nf3 {[%emt 0:00:12]} Nc6 {[%emt 0:00:23]} 3. c3 {[%emt 0:00:25]} Nf6 {[%emt 0:00:51]} 4. e5 {[%emt 0:00:15]} Nd5 {[%emt 0:00:07]} 5. d4 {[%emt 0:01:33]} cxd4 {[%emt 0:00:10]} 6. Bc4 {[%emt 0:01:15]} Nb6 {[%emt 0:00:19]} 7. Bb3 {[%emt 0:00:07]} d5 {[%emt 0:00:28]} 8. exd6 {[%emt 0:02:25]} Qxd6 {[%emt 0:00:10]} 9. Nxd4 {[%emt 0:04:44]} Nxd4 {[%emt 0:03:34]} 10. Qxd4 {[%emt 0:00:34]} Qxd4 {[%emt 0:06:10]} 11. cxd4 {[%emt 0:00:46]} g6 {[%emt 0:01:11]} 12. Nc3 {[%emt 0:00:42]} Bg7 {[%emt 0:00:20]} 13. Be3 {[%emt 0:00:15]} O-O {[%emt 0:00:21]} 14. O-O {[%emt 0:00:37]} Bf5 {[%emt 0:01:30]} 15. Rfd1 {[%emt 0:01:47]} Rfd8 {[%emt 0:01:23]} 16. d5 {[%emt 0:15:14]} Rdc8 {[%emt 0:15:00]} 17. Bd4 {[%emt 0:11:44]} Nc4 {[%emt 0:00:52]} 18. Bxg7 {[%emt 0:12:48]} Kxg7 {[%emt 0:00:27]} 19. Bxc4 {[%emt 0:00:23]} Rxc4 {[%emt 0:00:07]} 20. Rd2 {[%emt 0:00:26]} Rd8 {[%emt 0:01:37]} 21. Rad1 {[%emt 0:03:57]} a6 {[%emt 0:03:02]} 22. f3 {[%emt 0:02:31]} b5 {[%emt 0:03:48]} 23. Rd4 {[%emt 0:02:47]} Rxd4 {[%emt 0:04:23]} 24. Rxd4 {[%emt 0:00:07]} e5 {[%emt 0:00:44]} 25. Rd2 {[%emt 0:04:00]} Rc8 {[%emt 0:09:30]} 26. a3 {[%emt 0:03:08]} f6 {[%emt 0:14:16]} 27. Kf2 {[%emt 0:01:50]} Bd7 {[%emt 0:03:05]} 28. Re2 {[%emt 0:05:43]} a5 {[%emt 0:05:30]} 29. Ne4 {[%emt 0:08:14]} Rc4 {[%emt 0:09:14]} 30. b3 {[%emt 0:05:55]} Rd4 {[%emt 0:02:51]} 31. Rd2 {[%emt 0:00:10]} Rxd2+ {[%emt 0:01:26]} 32. Nxd2 {[%emt 0:00:05]} Kf7 {[%emt 0:04:48]} 33. b4 {[%emt 0:01:32]} axb4 {[%emt 0:00:11]} 34. axb4 {[%emt 0:00:04]} Ke7 {[%emt 0:02:01]} 35. Ke3 {[%emt 0:03:42]} f5 {[%emt 0:02:43]} 36. Nb1 {[%emt 0:00:29]} f4+ {[%emt 0:01:01]} 37. Kf2 {[%emt 0:00:38]} Bf5 {[%emt 0:00:47]} 38. Nc3 {[%emt 0:00:18]} Bd3 {[%emt 0:00:08]} 39. g3 {[%emt 0:00:53]} Bc4 {[%emt 0:01:49]} 40. Ke1 {[%emt 0:00:00]} h5 {[%emt 0:00:00]} 41. gxf4 {[%emt 0:04:23]} exf4 {[%emt 0:03:22]} 42. h4 {[%emt 0:00:46]} Kd6 {[%emt 0:04:52]} 43. Kf2 {[%emt 0:00:10]} Ke5 {[%emt 0:00:25]} 44. Kg2 {[%emt 0:00:28]} Kf5 {[%emt 0:02:04]} 45. Kf2 {[%emt 0:00:33]} Ke5 {[%emt 0:01:47]} 46. Kg2 {[%emt 0:00:10]} Kf5 {[%emt 0:05:30]} 1/2-1/2

[Event "7th Summer Cup 2024"]
[Site "Rhodes"]
[Date "2024.06.26"]
[Round "5.5"]
[White "Stefanova, Antoaneta"]
[Black "Ballas, Athanasios-panagioti"]
[Result "1-0"]
[ECO "E60"]
[WhiteElo "2417"]
[BlackElo "2151"]
[Annotator "RC"]
[PlyCount "65"]
[EventDate "2024.06.21"]
[EventType "swiss"]
[EventCountry "GRE"]
[SourceTitle "playchess.com"]
[Source "ChessBase"]
[SourceQuality "1"]
[TimeControl "40/5400+30:900+30"]

1. d4 {[%emt 0:00:43]} Nf6 {[%emt 0:04:34]} 2. c4 {[%emt 0:00:04]} g6 {[%emt 0:01:12]} 3. h4 {[%emt 0:00:06]} Bg7 {[%emt 0:04:20]} 4. Nc3 {[%emt 0:00:06]} d5 {[%emt 0:01:19]} 5. h5 {[%emt 0:00:49]} Nxh5 {[%emt 0:01:47]} 6. cxd5 {[%emt 0:00:06]} c6 {[%emt 0:04:50]} 7. e4 {[%emt 0:06:07]} e5 {[%emt 0:11:05]} 8. dxe6 {[%emt 0:12:18]} Bxe6 {[%emt 0:01:42]} 9. e5 {[%emt 0:13:37]} Bd5 {[%emt 0:27:38]} 10. Nxd5 {[%emt 0:08:42]} Qxd5 {[%emt 0:00:10]} 11. Be2 {[%emt 0:00:28]} Bf8 {[%emt 0:04:46]} 12. Bf3 {[%emt 0:03:06]} Qa5+ {[%emt 0:05:00]} 13. Bd2 {[%emt 0:00:37]} Qb6 {[%emt 0:00:05]} 14. Bxh5 {[%emt 0:01:57]} gxh5 {[%emt 0:00:07]} 15. Bc3 {[%emt 0:02:05]} Nd7 {[%emt 0:01:48]} 16. Qxh5 {[%emt 0:02:30]} O-O-O {[%emt 0:00:20]} 17. Qxf7 {[%emt 0:06:42]} Bb4 {[%emt 0:00:06]} 18. Qb3 {[%emt 0:05:52]} a5 {[%emt 0:08:09]} 19. Bxb4 {[%emt 0:04:50]} axb4 {[%emt 0:00:28]} 20. Ne2 {[%emt 0:01:19]} Qa6 {[%emt 0:03:25]} 21. Qxb4 {[%emt 0:06:35]} Rhg8 {[%emt 0:02:52]} 22. g3 {[%emt 0:03:01]} Rg4 {[%emt 0:01:33]} 23. Qa3 {[%emt 0:05:48]} Qb5 {[%emt 0:02:03]} 24. Qb3 {[%emt 0:00:58]} Qa6 {[%emt 0:01:29]} 25. Rxh7 {[%emt 0:04:13]} c5 {[%emt 0:03:36]} 26. Rc1 {[%emt 0:03:46]} Kb8 {[%emt 0:00:33]} 27. Qf3 {[%emt 0:02:05]} Rg6 {[%emt 0:00:19]} 28. Rxd7 {[%emt 0:01:27]} Rxd7 {[%emt 0:02:13]} 29. Qf8+ {[%emt 0:00:04]} Kc7 {[%emt 0:00:19]} 30. Rxc5+ {[%emt 0:00:25]} Rc6 {[%emt 0:01:04]} 31. e6 {[%emt 0:01:28]} Rh7 {[%emt 0:00:04]} 32. e7 {[%emt 0:00:32]} Rxc5 {[%emt 0:01:07]} 33. Qd8+ {[%emt 0:00:13]} 1-0

[Event "7th Summer Cup 2024"]
[Site "Rhodes"]
[Date "2024.06.26"]
[Round "5.6"]
[White "Ghaith Saeed Alnuaimi"]
[Black "Ladopoulos, Dimitrios"]
[Result "0-1"]
[ECO "B07"]
[WhiteElo "1799"]
[BlackElo "2374"]
[Annotator "RC"]
[PlyCount "42"]
[EventDate "2024.06.21"]
[EventType "swiss"]
[EventCountry "GRE"]
[SourceTitle "playchess.com"]
[Source "ChessBase"]
[SourceQuality "1"]
[TimeControl "40/5400+30:900+30"]

1. e4 {[%emt 0:05:04]} d6 {[%emt 0:04:14]} 2. d4 {[%emt 0:00:07]} Nf6 {[%emt 0:00:07]} 3. Nc3 {[%emt 0:00:10]} c6 {[%emt 0:01:04]} 4. f4 {[%emt 0:02:04]} Qa5 {[%emt 0:01:12]} 5. Bd3 {[%emt 0:00:43]} e5 {[%emt 0:00:06]} 6. dxe5 {[%emt 0:02:11]} dxe5 {[%emt 0:00:05]} 7. Nf3 {[%emt 0:00:06]} Nbd7 {[%emt 0:01:47]} 8. Qe2 {[%emt 0:05:41]} Bd6 {[%emt 0:07:10]} 9. Bd2 {[%emt 0:02:34]} Qc7 {[%emt 0:00:40]} 10. f5 {[%emt 0:10:59]} Nc5 {[%emt 0:10:06]} 11. Rg1 {[%emt 0:14:37]} a6 {[%emt 0:09:51]} 12. g4 {[%emt 0:01:40]} b5 {[%emt 0:00:39]} 13. Nd1 {[%emt 0:18:06]} Bb7 {[%emt 0:03:47]} 14. c3 {[%emt 0:07:06]} Nxd3+ {[%emt 0:04:22]} 15. Qxd3 {[%emt 0:00:06]} O-O-O {[%emt 0:07:07]} 16. Qc2 {[%emt 0:01:22]} Nxe4 {[%emt 0:05:27]} 17. Qxe4 {[%emt 0:02:05]} c5 {[%emt 0:00:50]} 18. Qe3 {[%emt 0:02:58]} e4 {[%emt 0:00:11]} 19. Ng5 {[%emt 0:00:08]} Bxh2 {[%emt 0:07:31]} 20. Nh3 {[%emt 0:03:03]} Rd3 {[%emt 0:00:38]} 21. Qe2 {[%emt 0:03:27]} Rxh3 {[%emt 0:00:13]} 0-1

[Event "7th Summer Cup 2024"]
[Site "Rhodes"]
[Date "2024.06.26"]
[Round "5.8"]
[White "Mickiewicz, Piotr"]
[Black "Sandalakis, Nikolaos"]
[Result "0-1"]
[ECO "A25"]
[WhiteElo "2257"]
[BlackElo "2229"]
[Annotator "RC"]
[PlyCount "80"]
[EventDate "2024.06.21"]
[EventType "swiss"]
[EventCountry "GRE"]
[SourceTitle "playchess.com"]
[Source "ChessBase"]
[SourceQuality "1"]
[TimeControl "40/5400+30:900+30"]

1. c4 {[%emt 1:31:00]} e5 {[%emt 1:31:00]} 2. d3 {[%emt 0:00:30]} Nc6 {[%emt 0:00:00]} 3. Nf3 {[%emt 0:00:30]} Bb4+ {[%emt 0:01:00]} 4. Nc3 {[%emt 0:00:30]} f5 {[%emt 0:00:30]} 5. g3 {[%emt 0:00:00]} Nf6 {[%emt 0:00:30]} 6. Bg2 {[%emt 0:01:00]} O-O {[%emt 0:00:30]} 7. O-O {[%emt 0:00:00]} Bxc3 {[%emt 0:00:00]} 8. bxc3 {[%emt 0:01:00]} d6 {[%emt 0:01:00]} 9. Rb1 {[%emt 0:00:30]} Qe8 {[%emt 0:00:30]} 10. Nd2 {[%emt 0:00:30]} f4 {[%emt 0:00:30]} 11. e3 {[%emt 0:00:30]} Bg4 {[%emt 0:00:30]} 12. f3 {[%emt 0:00:30]} Bc8 {[%emt 0:00:30]} 13. gxf4 {[%emt 0:00:00]} exf4 {[%emt 0:00:00]} 14. e4 {[%emt 0:01:00]} Ne5 {[%emt 0:00:00]} 15. d4 {[%emt 0:00:00]} Ng6 {[%emt 0:01:30]} 16. c5 {[%emt 0:00:00]} Nh4 {[%emt 0:00:30]} 17. Rf2 {[%emt 0:01:30]} Nxg2 {[%emt 0:00:00]} 18. Kxg2 {[%emt 0:00:30]} d5 {[%emt 0:01:00]} 19. Qe2 {[%emt 0:00:30]} Qg6+ {[%emt 0:00:00]} 20. Kh1 {[%emt 0:00:30]} dxe4 {[%emt 0:01:00]} 21. Nxe4 {[%emt 0:00:30]} Nxe4 {[%emt 0:00:30]} 22. fxe4 {[%emt 0:00:00]} f3 {[%emt 0:00:00]} 23. Qc4+ {[%emt 0:00:24]} Kh8 {[%emt 0:00:03]} 24. Be3 {[%emt 0:00:26]} Qxe4 {[%emt 0:00:48]} 25. Re1 {[%emt 0:00:12]} Bh3 {[%emt 0:00:24]} 26. Bd2 {[%emt 0:00:25]} Qg4 {[%emt 0:00:31]} 27. Qd5 {[%emt 0:00:11]} Bg2+ {[%emt 0:00:11]} 28. Kg1 {[%emt 0:00:02]} Bh3+ {[%emt 0:00:09]} 29. Kh1 {[%emt 0:00:01]} Qg2+ {[%emt 0:00:42]} 30. Rxg2 {[%emt 0:00:12]} fxg2+ {[%emt 0:00:05]} 31. Qxg2 {[%emt 0:00:06]} Bxg2+ {[%emt 0:00:04]} 32. Kxg2 {[%emt 0:00:05]} Rae8 {[%emt 0:02:33]} 33. Rxe8 {[%emt 0:03:24]} Rxe8 {[%emt 0:00:00]} 34. Kf3 {[%emt 0:00:16]} Kg8 {[%emt 0:00:00]} 35. Bf4 {[%emt 0:00:27]} c6 {[%emt 0:00:00]} 36. c4 {[%emt 0:00:19]} Kf7 {[%emt 0:00:13]} 37. d5 {[%emt 0:00:37]} Re1 {[%emt 0:00:45]} 38. Bb8 {[%emt 0:00:49]} a6 {[%emt 0:00:22]} 39. Bc7 {[%emt 0:00:29]} Rc1 {[%emt 0:00:30]} 40. d6 {[%emt 0:00:00]} Ke6 {[%emt 0:00:00]} 0-1